Cogmind - Beta 13 @@@ ROGUE MODE // 2024.04.19 @ 16:26:23 Player: Gafrankl Result: Destroyed by D-53 Grenadier with Mini Grenade Launcher Performance ------------- Evolutions (0) 0 Regions Visited (2) 400 Robots Destroyed (7) 35 Value Destroyed (283) 283 Prototype IDs (0) 0 Alien Tech Used (0) 0 Bonus (14) 14 TOTAL SCORE: 732 Bonus ------- Follower Combat Kills 14 Cogmind --------- Core Integrity 0/250 Matter 238/300 Energy 124/125 System Corruption 0% Temperature Cool (0) Movement Core (150) Ox2 Location -10/Mines Parts ------- > --- POWER (1) -------- Light Ion Engine > --- PROPULSION (2) --- Aluminum Leg > --- UTILITY (2) ------ Improved Heat Sink Terrain Scan Processor > --- WEAPON (2) ------- Heavy Assault Rifle > --- INVENTORY (5) ---- Light Ion Engine Flight Unit High-capacity Storage Unit Assault Rifle Heavy Assault Rifle Peak State ------------ > --- POWER ------------ Light Ion Engine > --- PROPULSION ------- Light Treads Aluminum Leg > --- UTILITY ---------- Improved Heat Sink Terrain Scan Processor > --- WEAPON ----------- Heavy Assault Rifle Heavy Assault Rifle > --- INVENTORY -------- High-capacity Storage Unit Assault Rifle [Rating: 12] Favorites ----------- Power Ion Engine Engine Ion Engine Propulsion Light Treads Treads Light Treads Leg Aluminum Leg Utility Improved Heat Sink Device Improved Heat Sink Processor Terrain Scan Processor Weapon Heavy Assault Rifle Energy Gun Small Laser Ballistic Gun Heavy Assault Rifle Special Weapon Mining Laser Build | -11 -10 -10 ------- Run | Yrd Mat Min Slots Evolved . | . . . Power . | . . . Propulsion . | . . . Utility . | . . . Weapon . | . . . Parts Attached 18 | 5 9 4 Power 3 | 1 1 1 Engine 3 | 1 1 1 Core . | . . . Reactor . | . . . Propulsion 5 | 2 2 1 Treads 3 | 2 . 1 Leg 2 | . 2 . Wheel . | . . . Hover . | . . . Flight . | . . . Utility 3 | . 2 1 Device 2 | . 2 . Storage . | . . . Processor 1 | . . 1 Hackware . | . . . Protection . | . . . Artifact . | . . . Weapon 7 | 2 4 1 Energy Gun 1 | . 1 . Energy Cannon . | . . . Ballistic Gun 5 | 2 3 . Ballistic Cannon . | . . . Launcher . | . . . Special Weapon 1 | . . 1 Impact Weapon . | . . . Slashing Weapon . | . . . Piercing Weapon . | . . . Special Melee Weapon . | . . . Unidentified Prototypes . | . . . Parts Lost 7 | . 2 5 Power 1 | . . 1 Propulsion 3 | . 1 2 Utility 1 | . . 1 Weapon 2 | . 1 1 Highest Loss Streak 3 | . 2 3 To Critical Strikes . | . . . Average Slot Usage (%) 91 | . 84 96 Engine 13 | . 14 12 Treads 13 | . 19 9 Leg 12 | . 4 16 Device 17 | . 18 16 Processor 6 | . . 9 Energy Gun 1 | . 3 . Ballistic Gun 20 | . 24 18 Special Weapon 6 | . . 9 Naked Turns . | . . . Heaviest Build 13 | 8 13 13 Greatest Support 40 | 40 40 20 Greatest Overweight (x) 1 | 1 . . Average Overweight (x) . | . . . Largest Inventory Capacity 5 | 5 5 5 Average Capacity 5 | 5 5 5 Most Carried 5 | 1 5 5 Average Carried 3 | . 3 4 Final Capacity 5 | 5 5 5 Final Carried 5 | 1 5 5 Class Distribution -------------------- 81% | Mutant 18% | Scavenger-Mutant Dominant Class ---------------- Mutant | -10/Materials Mutant | -10/Mines Resources | -11 -10 -10 ----------- Run | Yrd Mat Min Matter Collected 506 | 241 134 131 Remotely . | . . . Salvage Created 257 | . 168 89 Parts 12 | . 9 3 Haulers Intercepted . | . . . Recyclers Shooed . | . . . Parts Field Recycled . | . . . Retrieved Matter . | . . . Parts Self-Destructed . | . . . Prevented . | . . . Kills | -11 -10 -10 ------- Run | Yrd Mat Min Combat Hostiles Destroyed 7 | . 4 3 Guns 7 | . 4 3 Classes Destroyed 2 | . 1 1 Grunt 6 | . 4 2 Demolisher 1 | . . 1 Best Kill Streak 2 | . 2 2 Combat Bots Only 2 | . 2 2 Max Kills in Single Turn 1 | . 1 1 Gunslinging . | . . . Exploded . | . . . Melee . | . . . Uniques/NPCs Destroyed . | . . . Combat | -11 -10 -10 -------- Run | Yrd Mat Min Hostile Shots Fired 83 | . 51 32 Missed 15 | . 11 4 Damage Taken 1064 | . 541 523 Core 259 | . 94 165 Absorbed by Shields . | . . . Core Remaining (%) 100 | 100 . . Volleys Fired 50 | . 28 22 Largest 2 | . 2 2 Hottest 60 | . 60 46 Shots Fired 94 | . 55 39 Gun 94 | . 55 39 Cannon . | . . . Launcher . | . . . Special . | . . . Kinetic 93 | . 54 39 Thermal 1 | . 1 . Explosive . | . . . Electromagnetic . | . . . Robot Hit Streak 9 | . 9 7 Robot Miss Streak 4 | . 3 4 Penetration Max . | . . . Secondary Targets 2 | . 1 1 Max Gunslinging Chain 1 | . 1 1 Shots Hit Robots 61 | . 41 20 Core Hits 16 | . 11 5 Critical Kills . | . . . Critical Parts Destroyed . | . . . Critical Strikes . | . . . Melee Attacks . | . . . Impact . | . . . Slashing . | . . . Piercing . | . . . Sneak Attacks . | . . . Combat Hostiles . | . . . Follow-up Attacks . | . . . Damage Inflicted 708 | . 408 300 Guns 708 | . 408 300 Cannons . | . . . Explosions . | . . . Melee . | . . . Ramming . | . . . Kinetic 698 | . 398 300 Thermal 10 | . 10 . Explosive . | . . . Electromagnetic . | . . . Impact . | . . . Slashing . | . . . Piercing . | . . . Highest Corruption . | . . . Average Corruption . | . . . Corruption Purged . | . . . Corruption Blocked . | . . . Overload Shots . | . . . Overflow Damage . | . . . Projectiles . | . . . Explosions . | . . . Melee . | . . . Knockbacks . | . . . Impact . | . . . Kinetic . | . . . Secondary . | . . . Self-Inflicted Damage . | . . . Shots . | . . . Rammed . | . . . Targets Rammed . | . . . Kicked . | . . . Crushed . | . . . Highest Temperature 30 | . 30 . Average Temperature 12 | . 12 . Received Heat Transfer 504 | . 303 201 Siege Activations . | . . . Robots Corrupted . | . . . Combat Hostiles . | . . . Parts Fried . | . . . Impact Corruptions . | . . . Robots Melted . | . . . Combat Hostiles . | . . . Parts Melted . | . . . Heat Transferred 25 | . 25 . Parts Sabotaged . | . . . Parts Stolen . | . . . Parts Stripped . | . . . Power Chain Reactions . | . . . Alert | -11 -10 -10 ------- Run | Yrd Mat Min Peak Influence 83 | . 70 83 Initial . | . . . Average 24 | . 43 17 Maximum Alert Level . | . . . Low Security (%) 100 | 100 100 100 Level 1 . | . . . Level 2 . | . . . Level 3 . | . . . Level 4 . | . . . Level 5 . | . . . High Security . | . . . Max Security . | . . . Squads Dispatched . | . . . Investigation . | . . . Extermination . | . . . Reinforcement . | . . . Assault . | . . . Garrison . | . . . Intercept . | . . . Searches Triggered . | . . . Construction Impeded . | . . . Haulers Reinforced . | . . . Active Scanning Responses . | . . . Cargo Convoy Interrupts . | . . . Stealth | -11 -10 -10 --------- Run | Yrd Mat Min Distress Signals . | . . . Communications Jammed . | . . . Distress Signals . | . . . Times Spotted 12 | . 5 7 Peak Tracking Total 3 | . 2 3 Tactical Retreats . | . . . Traps | -11 -10 -10 ------- Run | Yrd Mat Min Traps Triggered . | . . . Indirectly . | . . . Trap Hack Attempts . | . . . Triggered . | . . . Disarmed . | . . . Reprogrammed . | . . . Reused . | . . . Traps Extracted . | . . . Installed . | . . . Triggered . | . . . Machines | -11 -10 -10 ---------- Run | Yrd Mat Min Machines Disabled . | . . . Max in Single Turn . | . . . Machines Repaired . | . . . Machines Dismantled . | . . . Machines Sabotaged . | . . . Overloaded Fab Kills . | . . . Hacking | -11 -10 -10 --------- Run | Yrd Mat Min Machines Accessed 1 | . 1 . Terminals 1 | . 1 . Fabricators . | . . . Repair Stations . | . . . Recycling Units . | . . . Scanalyzers . | . . . Garrison Access . | . . . Total Hacks 3 | . 3 . Successful . | . . . Failed 3 | . 3 . Catastrophic . | . . . Database Lockouts . | . . . Manual . | . . . Terminals 3 | . 3 . Fabricators . | . . . Repair Stations . | . . . Recycling Units . | . . . Scanalyzers . | . . . Garrison Access . | . . . Terminal Hacks . | . . . Fabricator Hacks . | . . . Repair Station Hacks . | . . . Recycling Unit Hacks . | . . . Scanalyzer . | . . . Garrison Access Hacks . | . . . Unauthorized Hacks . | . . . Terminals . | . . . Fabricators . | . . . Repair Stations . | . . . Recycling Units . | . . . Scanalyzers . | . . . Garrison Access . | . . . Data Cores Recovered . | . . . Used . | . . . Hacking Detections 1 | . 1 . Full Trace Events . | . . . Feedback Events . | . . . Feedback Blocked . | . . . Robot Schematics Acquired . | . . . Robots Built . | . . . Authchips . | . . . Time . | . . . Total Robot Build Rating . | . . . Part Schematics Acquired . | . . . Parts Built . | . . . Authchips . | . . . Time . | . . . Total Part Build Rating . | . . . Parts Repaired . | . . . Time . | . . . Parts Recycled . | . . . Recycled Matter . | . . . Retrieved Matter . | . . . Retrieved Components . | . . . Parts Scanalyzed . | . . . Part Schematics Acquired . | . . . Parts Damaged . | . . . Bothacking | -11 -10 -10 ------------ Run | Yrd Mat Min Used RIF Installer . | . . . Robots Hacked . | . . . Non-combat . | . . . Combat . | . . . Robot Hacks Applied . | . . . Relay Couplers Released . | . . . Fabnet Peak Effective % . | . . . Robots Rewired . | . . . Allies Hacked . | . . . Hacks Repelled . | . . . Allies | -11 -10 -10 -------- Run | Yrd Mat Min Total Allies 1 | . . 1 Largest Group 1 | . . 1 Highest-Rated Group 31 | . . 31 Highest-Rated Ally 31 | . . 31 Total Orders . | . . . Ally Attacks 6 | . . 6 Total Damage 64 | . . 64 Kills 2 | . . 2 Allies Corrupted . | . . . Allies Melted . | . . . Intel | -11 -10 -10 ------- Run | Yrd Mat Min Robot Analysis Total . | . . . Derelict Logs Recovered 1 | . . 1 Drone Launches . | . . . Drone Recoveries . | . . . Exploration | -11 -10 -10 ------------- Run | Yrd Mat Min Turns Passed 1192 | 112 411 669 Spaces Moved 686 | 71 209 406 Core 11 | 11 . . Treads 507 | 60 161 286 Legs 168 | . 48 120 Wheels . | . . . Hover . | . . . Flight . | . . . Fastest Speed 50 | 50 120 120 Average Speed 148 | 147 150 148 Slowest Speed 160 | 160 160 160 Overloaded Moves . | . . . Propulsion Burnouts . | . . . Robots Hopped . | . . . Cave-ins Triggered . | . . . Exploration Rate (%) 37 | 4 28 79 Regions Visited 2 Branch Regions 1 Pre-discovered Areas . | . . . Known Exits Taken . | . . . Unknown Exits Taken 2 | 1 1 . Scrap Searched . | . . . Spaces Dug . | . . . Terrain Destroyed . | . . . Melee . | . . . Projectile . | . . . AOE . | . . . Terrain Rammed . | . . . Walls Destroyed . | . . . Machines Disabled . | . . . Actions | -11 -10 -10 --------- Run | Yrd Mat Min Total 764 | 76 253 435 Wait . | . . . Move 684 | 70 208 406 Hop . | . . . Pick Up 9 | 1 5 3 Fast Attach 9 | 5 4 . Attach 4 | . 1 3 Detach . | . . . Swap 5 | . 4 1 Drop 3 | . 3 . Fire 50 | . 28 22 Melee . | . . . Ram . | . . . Kick . | . . . Crush . | . . . Escape Stasis . | . . . Rewire . | . . . Trap . | . . . Miscellaneous . | . . . Route ------- -11/Scrapyard -10/Materials -10/Mines History --------- Turn | Location | Event 14 | -11/Scrapyard | Discovered new exit (range 15) 113 | -11/Scrapyard | Entered Materials 315 | -10/Materials | Build established: Mutant 485 | -10/Materials | Discovered new exit (range 15) 524 | -10/Materials | Entered Mines 525 | -10/Mines | Assembled infested the area 530 | -10/Mines | Assisted by a Guerilla fighting off Assembled 659 | -10/Mines | Core integrity fell below 50% 697 | -10/Mines | Lost 3 parts (1p1n1u) 712 | -10/Mines | Received a Mining Laser from a helpful Derelict 999 | -10/Mines | Learned location of 1 exit from Materials 1192 | -10/Mines | Core integrity fell below 20% 1193 | -10/Mines | Destroyed by D-53 Grenadier with Mini Grenade Launcher Last Messages --------------- parts, I'll cover you." AP-S56(g): "Mining lasers are a lot more useful than you might think..." Acquired Mining Laser. S-10 Pest destroyed. Acquired 12 matter. S-10 Pest destroyed. Acquired Flight Unit. Acquired 30 matter. Acquired Lgt. Ion Engine. T-07 Excavator is excavating. AP-S56(g): "You look like you can take it from here!" AP-S56(g) slips back into the shadows. Acquired derelict log, extracted data. Data stored: Materials exits (x1). T-07 Excavator is excavating. D-53 Grenadier destroyed. Mining Laser destroyed. Lgt. Treads destroyed. Map ----- +----------------------------------------------------+ | ????????????##### #######????????????## #### | | ????????????????# ##??????????????????# | | ????????????????# ##??????????????????# """ | | ?????????####???## #????????????????? """ | | ????????## #??## #?????????????????? """ | | ???????## ### #??????????????????# ## | | ???????# ###????????????????## #?## | | ???????# ##????????????????######???# | | ???????## ##????????????????????????? | | ????????# #????????????????????????? | | ????????## ## #????????????????????????? | | ?????????##??## ## ##????????????????????????? | | ????????? #???# ##?###?????????????????????????? | | ????????? #??## #??????????????????????????????? | | ????????? #?## #??????????????????????????????? | | ????????? ### #??????????????????????????????? | | ??????### ?# #??????????????????????????????? | | ??????# ?# #??????????????????????????????? | | ??????# #?# ##??????????????????????????????? | | ??????# ### ##???????????????????????????????? | | ??????# ## ##??######??##????????????????????? | | ??????# ##?## # ## ##???????????????????? | | ?????## ### ###?????????????????? | | ?????# ##????????????????? | | ?????# #####??????? ?? | | ?????# ###### @ % d ?? | | ?????# ##????## % ?? | | ????## #??????#### ######## $ ?? | | ??### #?????????# ####???????????# #?? | | ??# #?????????## ##??????????????# #?? | | ?# #??????????#######???????????????# #?? | | ?# #????????????????????????????????# #?? | | ?## ##????????????????????????????????# #?? | | ??##### ##?????????????????????????????????# #?? | | ??????####??????????????????????????????????# #?? | | ????????????????????????????????????????????# #?? | | ????????????????????????????????????????????# #?? | | ????????????????????????????????????????????# #?? | | ????????????????????????????????????????????# ### | | ??????????????????????????????????########### | | ??????????????????????????????????# # ### | | ??????????????????????????????????# # #?? | | ??????????????????????????????????# #?? | | ??????????????????????????????????# #?? | | ??????????????????????????????????# ####?? | | ??????????????????????????????????# #????? | | ??????????????????????????????????###########????? | | ?????????????????????????????????????????????????? | | ?????????????????????????????????????????????????? | | | +----------------------------------------------------+ Best States ------------- Heat Dissipation 49 Energy Generation 10 Energy Capacity 250 Matter Stores 300 Matter Capacity 300 Sight Range 16 Terrain Scan Density 85 Evasion (%) 55 Recoil Reduction 2 Item Schematics ----------------- None Robot Schematics ------------------ None Fabricated ------------ Nothing Alien Tech Used ----------------- None Achievements -------------- None Challenges ------------ None Game ------ Seed PhasingContainmentProtection Manual? 0 Play Time 00:09:47 Cumulative 3.4 hours Start 2024.04.19 @ 16:17:09 End 2024.04.19 @ 16:26:23 Sessions 1 Manual Loads 0 Difficulty Rogue Special Mode None Game No. 5 Rogue 5 Adventurer 0 Explorer 0 Win Type - Total 0 Types 0/0/0/0/0/0/0/0/0 Lore% 2 Gallery% 8 Achievement% 8 Wizard Run 0 Options --------- Layout 1 ASCII 0 Keyboard 0 Movement Arrows Keybinds 0 Fullscreen 1 Font 24/Smallcaps Map View 50x35 Zoom Use 0% Tactical HUD 0 Map Filters NONE Filters NONE Steam 1 RUN: e31f3a88-a68a-44d2-b727-bde6ba6693b9